[Event "*** Titled Tuesday Blitz"]
[Site "Chess.com"]
[Date "2020.04.07"]
[Round "6"]
[White "KerryStead"]
[Black "VALPARAISO37"]
[Result "1-0"]
[WhiteElo "2174"]
[BlackElo "2303"]
[TimeControl "180+1"]
[EndTime "14:09:16 PDT"]
[Termination "KerryStead won on time"]

1. d4 {[%clk 0:03:00.9]} 1... Nf6 {[%clk 0:02:59.2]} 2. f3 {[%clk 0:03:00.3]}
2... c5 {[%clk 0:02:58.4]} 3. d5 {[%clk 0:02:59.8]} 3... e6 {[%clk 0:02:56.3]}
4. c4 {[%clk 0:02:59.5]} 4... exd5 {[%clk 0:02:56]} 5. cxd5 {[%clk 0:02:59]}
5... g6 {[%clk 0:02:56.4]} 6. e4 {[%clk 0:02:58.5]} 6... d6 {[%clk 0:02:56.1]}
7. Ne2 {[%clk 0:02:57.9]} 7... b5 {[%clk 0:02:52.7]} 8. a4 {[%clk 0:02:56.7]}
8... b4 {[%clk 0:02:53]} 9. Nd2 {[%clk 0:02:56.1]} 9... a5 {[%clk 0:02:51.1]}
10. Nc4 {[%clk 0:02:55.2]} 10... Bg7 {[%clk 0:02:51]} 11. Ng3 {[%clk 0:02:53.5]}
11... O-O {[%clk 0:02:50.2]} 12. Be3 {[%clk 0:02:52.6]} 12... Ba6 {[%clk
0:02:47.3]} 13. Qd2 {[%clk 0:02:52.1]} 13... Bxc4 {[%clk 0:02:47.2]} 14. Bxc4
{[%clk 0:02:51.5]} 14... Nbd7 {[%clk 0:02:46]} 15. Rc1 {[%clk 0:02:50.3]} 15...
Nb6 {[%clk 0:02:40.9]} 16. b3 {[%clk 0:02:49.5]} 16... Nfd7 {[%clk 0:02:38.5]}
17. O-O {[%clk 0:02:47.1]} 17... Re8 {[%clk 0:02:36.7]} 18. Bh6 {[%clk
0:02:44.5]} 18... Bd4+ {[%clk 0:02:35.2]} 19. Kh1 {[%clk 0:02:43.7]} 19... Qh4
{[%clk 0:02:34.4]} 20. Bg5 {[%clk 0:02:42.1]} 20... Qxg5 {[%clk 0:02:21]} 21.
Qxg5 {[%clk 0:02:41.2]} 21... Re5 {[%clk 0:02:21.1]} 22. Qd2 {[%clk 0:02:34.5]}
22... Ree8 {[%clk 0:02:16.9]} 23. Ne2 {[%clk 0:02:24.5]} 23... Bg7 {[%clk
0:02:14.1]} 24. g4 {[%clk 0:02:19.3]} 24... Ne5 {[%clk 0:02:12.8]} 25. Kg2
{[%clk 0:02:17.4]} 25... Nexc4 {[%clk 0:02:10.2]} 26. bxc4 {[%clk 0:02:16.9]}
26... Nxa4 {[%clk 0:02:09.2]} 27. h4 {[%clk 0:02:14.9]} 27... Nb2 {[%clk
0:02:04.3]} 28. Qc2 {[%clk 0:02:11.2]} 28... a4 {[%clk 0:02:03.7]} 29. h5 {[%clk
0:02:05.3]} 29... b3 {[%clk 0:02:02.6]} 30. Qd2 {[%clk 0:01:59.7]} 30... a3
{[%clk 0:02:02.8]} 31. hxg6 {[%clk 0:01:58.8]} 31... hxg6 {[%clk 0:02:00.7]} 32.
Rh1 {[%clk 0:01:56.4]} 32... a2 {[%clk 0:02:00.8]} 33. Nc3 {[%clk 0:01:54.6]}
33... Nxc4 {[%clk 0:01:58.5]} 34. Qe2 {[%clk 0:01:47.8]} 34... b2 {[%clk
0:01:53.2]} 35. Qxc4 {[%clk 0:01:45.7]} 35... bxc1=Q {[%clk 0:01:50.8]} 36. Rxc1
{[%clk 0:01:42.8]} 36... a1=R {[%clk 0:01:49.1]} 37. Nb5 {[%clk 0:01:34.8]}
37... R8a2+ {[%clk 0:01:46.9]} 38. Kg3 {[%clk 0:01:34.3]} 38... Ra4 {[%clk
0:01:40.9]} 39. Qf1 {[%clk 0:01:29.9]} 39... Be5+ {[%clk 0:01:24.3]} 40. Kh4
{[%clk 0:01:26.3]} 40... Rxc1 {[%clk 0:01:20.5]} 41. Qxc1 {[%clk 0:01:24.9]}
41... Kg7 {[%clk 0:01:20.2]} 42. g5 {[%clk 0:01:24.1]} 42... Rh8+ {[%clk
0:01:18.3]} 43. Kg4 {[%clk 0:01:24.3]} 43... Rh2 {[%clk 0:01:13.2]} 44. Qf1
{[%clk 0:01:09.6]} 44... Raa2 {[%clk 0:01:09.4]} 45. f4 {[%clk 0:01:07.2]} 45...
Rag2+ {[%clk 0:01:07.6]} 46. Kf3 {[%clk 0:01:06.5]} 46... Rf2+ {[%clk
0:01:05.4]} 47. Qxf2 {[%clk 0:01:05.8]} 47... Rxf2+ {[%clk 0:01:05.6]} 48. Kxf2
{[%clk 0:01:05.8]} 48... Bxf4 {[%clk 0:01:06.3]} 49. Kf3 {[%clk 0:01:05.7]}
49... Be5 {[%clk 0:01:06.4]} 50. Na3 {[%clk 0:00:55.4]} 50... f5 {[%clk
0:01:03]} 51. Nc4 {[%clk 0:00:53.8]} 51... Kf7 {[%clk 0:00:52.2]} 52. Ke3 {[%clk
0:00:53.2]} 52... Ke7 {[%clk 0:00:51.5]} 53. Kf3 {[%clk 0:00:51.3]} 53... Kd7
{[%clk 0:00:50.1]} 54. Ke3 {[%clk 0:00:51.5]} 54... Bc3 {[%clk 0:00:48.8]} 55.
exf5 {[%clk 0:00:48.8]} 55... gxf5 {[%clk 0:00:48.3]} 56. Kf4 {[%clk 0:00:49]}
56... Kc7 {[%clk 0:00:40.6]} 57. Kxf5 {[%clk 0:00:48.5]} 57... Ba1 {[%clk
0:00:39.6]} 58. Ke6 {[%clk 0:00:47.1]} 58... Be5 {[%clk 0:00:35.2]} 59. g6
{[%clk 0:00:46.9]} 59... Bg7 {[%clk 0:00:34.1]} 60. Nxd6 {[%clk 0:00:45.6]}
60... Kb6 {[%clk 0:00:34.5]} 61. Ne8 {[%clk 0:00:43.3]} 61... c4 {[%clk
0:00:30]} 62. d6 {[%clk 0:00:31.9]} 62... c3 {[%clk 0:00:29.2]} 63. d7 {[%clk
0:00:31.5]} 63... c2 {[%clk 0:00:24.7]} 64. d8=Q+ {[%clk 0:00:30.3]} 64... Kb5
{[%clk 0:00:24.2]} 65. Qd3+ {[%clk 0:00:27.6]} 65... Kc5 {[%clk 0:00:23.5]} 66.
Qxc2+ {[%clk 0:00:26.8]} 66... Kd4 {[%clk 0:00:22.2]} 67. Nxg7 {[%clk 0:00:23]}
1-0

[Event "*** Titled Tuesday Blitz"]
[Site "Chess.com"]
[Date "2020.04.07"]
[Round "6"]
[White "BobanBogosavljevic"]
[Black "Anton_Demchenko"]
[Result "0-1"]
[WhiteElo "2777"]
[BlackElo "2965"]
[TimeControl "180+1"]
[EndTime "14:09:18 PDT"]
[Termination "Anton_Demchenko won by resignation"]

1. Nf3 {[%clk 0:03:00.9]} 1... Nf6 {[%clk 0:03:00.2]} 2. c4 {[%clk 0:03:00.9]}
2... d6 {[%clk 0:03:00]} 3. d4 {[%clk 0:03:00.7]} 3... Nc6 {[%clk 0:03:00.5]} 4.
Nc3 {[%clk 0:02:59.5]} 4... e5 {[%clk 0:03:00.8]} 5. dxe5 {[%clk 0:02:40.7]}
5... dxe5 {[%clk 0:03:01.7]} 6. Qxd8+ {[%clk 0:02:40.8]} 6... Kxd8 {[%clk
0:03:01.8]} 7. Bg5 {[%clk 0:02:41.7]} 7... Be6 {[%clk 0:03:01.3]} 8. e3 {[%clk
0:02:39.7]} 8... Kc8 {[%clk 0:03:00.4]} 9. Be2 {[%clk 0:02:34.1]} 9... Nd7
{[%clk 0:02:59.2]} 10. O-O {[%clk 0:02:30.3]} 10... f6 {[%clk 0:02:59.6]} 11.
Bh4 {[%clk 0:02:29.2]} 11... a5 {[%clk 0:03:00.2]} 12. Rfd1 {[%clk 0:02:23.2]}
12... a4 {[%clk 0:02:59.7]} 13. Nd2 {[%clk 0:02:13]} 13... Nb6 {[%clk
0:02:43.6]} 14. Rac1 {[%clk 0:02:08.1]} 14... Be7 {[%clk 0:02:39.3]} 15. f3
{[%clk 0:02:05.3]} 15... Rd8 {[%clk 0:02:35.6]} 16. Bf2 {[%clk 0:02:05.3]} 16...
Na5 {[%clk 0:02:05.1]} 17. c5 {[%clk 0:01:28.2]} 17... Nbc4 {[%clk 0:01:42.5]}
18. Nxc4 {[%clk 0:01:14.8]} 18... Nxc4 {[%clk 0:01:42.8]} 19. Rxd8+ {[%clk
0:01:12.8]} 19... Bxd8 {[%clk 0:01:43.7]} 20. Rc2 {[%clk 0:00:50.2]} 20... Be7
{[%clk 0:01:30.7]} 21. e4 {[%clk 0:00:50.5]} 21... Na5 {[%clk 0:01:11.1]} 22.
Nd5 {[%clk 0:00:49.4]} 22... Bd8 {[%clk 0:01:11.4]} 23. g3 {[%clk 0:00:47.6]}
23... Nc6 {[%clk 0:01:06.9]} 24. Rd2 {[%clk 0:00:45.4]} 24... Ra5 {[%clk
0:00:50.6]} 25. a3 {[%clk 0:00:45.2]} 25... Nd4 {[%clk 0:00:45.1]} 26. Bxd4
{[%clk 0:00:44.5]} 26... exd4 {[%clk 0:00:45.6]} 27. Rxd4 {[%clk 0:00:45.2]}
27... Rxc5 {[%clk 0:00:44.4]} 28. Rxa4 {[%clk 0:00:45.2]} 28... Bxd5 {[%clk
0:00:16.8]} 29. exd5 {[%clk 0:00:45]} 29... Rxd5 {[%clk 0:00:17.4]} 30. Kf2
{[%clk 0:00:29.2]} 30... Rd2 {[%clk 0:00:14.5]} 31. Rb4 {[%clk 0:00:29.4]} 31...
c6 {[%clk 0:00:14.3]} 32. Ke3 {[%clk 0:00:28.6]} 32... Rc2 {[%clk 0:00:11]} 33.
Kd3 {[%clk 0:00:25]} 33... Rc1 {[%clk 0:00:11.1]} 34. Rc4 {[%clk 0:00:24.7]}
34... Rh1 {[%clk 0:00:10.7]} 35. h4 {[%clk 0:00:24.2]} 35... Bc7 {[%clk
0:00:09.5]} 36. Re4 {[%clk 0:00:09.5]} 36... Kd7 {[%clk 0:00:09.2]} 37. g4
{[%clk 0:00:07]} 37... Rxh4 {[%clk 0:00:08]} 38. b4 {[%clk 0:00:07.4]} 38... Rh1
{[%clk 0:00:07.6]} 39. a4 {[%clk 0:00:07.8]} 39... Rb1 {[%clk 0:00:07.2]} 40. b5
{[%clk 0:00:07.9]} 40... cxb5 {[%clk 0:00:07.4]} 41. axb5 {[%clk 0:00:08.6]}
41... Rxb5 {[%clk 0:00:07.1]} 42. Rd4+ {[%clk 0:00:09.1]} 42... Bd6 {[%clk
0:00:05.8]} 43. Kc4 {[%clk 0:00:06.9]} 43... Rc5+ {[%clk 0:00:06.2]} 44. Kd3
{[%clk 0:00:07.2]} 44... b5 {[%clk 0:00:05.9]} 45. Bd1 {[%clk 0:00:07.5]} 45...
Kc7 {[%clk 0:00:05.7]} 46. Bb3 {[%clk 0:00:07.1]} 46... Rc1 {[%clk 0:00:05.6]}
47. Bg8 {[%clk 0:00:06.8]} 47... h6 {[%clk 0:00:05.5]} 48. Bh7 {[%clk
0:00:06.8]} 48... Bc5 {[%clk 0:00:05.2]} 49. Rd5 {[%clk 0:00:06.5]} 49... Kb6
{[%clk 0:00:05]} 50. Ke4 {[%clk 0:00:05.8]} 50... b4 {[%clk 0:00:04.9]} 51. Rd7
{[%clk 0:00:05.6]} 51... Re1+ {[%clk 0:00:04.9]} 52. Kf5 {[%clk 0:00:05.2]}
52... Re5+ {[%clk 0:00:04.7]} 53. Kg6 {[%clk 0:00:03.3]} 53... Rg5+ {[%clk
0:00:04.1]} 54. Kf7 {[%clk 0:00:03.6]} 54... Kc6 {[%clk 0:00:04.4]} 55. Rd8
{[%clk 0:00:03.6]} 55... b3 {[%clk 0:00:03.1]} 56. Be4+ {[%clk 0:00:03.9]} 56...
Kc7 {[%clk 0:00:02.7]} 57. Rd5 {[%clk 0:00:01.6]} 57... Rxd5 {[%clk 0:00:02.1]}
58. Bxd5 {[%clk 0:00:02.5]} 58... b2 {[%clk 0:00:02.6]} 59. Be4 {[%clk
0:00:03.3]} 59... g5 {[%clk 0:00:02.5]} 60. Bb1 {[%clk 0:00:04.2]} 60... Bd4
{[%clk 0:00:02.1]} 61. Kg6 {[%clk 0:00:04.5]} 61... Kd6 {[%clk 0:00:02.4]} 62.
Kxh6 {[%clk 0:00:05]} 62... Ke5 {[%clk 0:00:02.8]} 63. Kg6 {[%clk 0:00:05.1]}
63... Kf4 {[%clk 0:00:03.3]} 64. Be4 {[%clk 0:00:05.7]} 64... Ke3 {[%clk
0:00:03.3]} 65. Kf5 {[%clk 0:00:06.1]} 65... Be5 {[%clk 0:00:03.3]} 66. Bb1
{[%clk 0:00:05.8]} 66... Kd2 {[%clk 0:00:03.7]} 67. Ba2 {[%clk 0:00:06.2]} 67...
Kc1 {[%clk 0:00:03.9]} 68. f4 {[%clk 0:00:06.4]} 68... Bxf4 {[%clk 0:00:03.9]}
69. Kxf6 {[%clk 0:00:06.8]} 69... b1=Q {[%clk 0:00:04.6]} 70. Bxb1 {[%clk
0:00:06.8]} 70... Kxb1 {[%clk 0:00:05.5]} 71. Kf5 {[%clk 0:00:07.3]} 71... Kc2
{[%clk 0:00:06.4]} 72. Ke4 {[%clk 0:00:07.5]} 72... Kc3 {[%clk 0:00:06.7]} 0-1

[Event "*** Titled Tuesday Blitz"]
[Site "Chess.com"]
[Date "2020.04.07"]
[Round "6"]
[White "cukin84"]
[Black "tonyq11"]
[Result "0-1"]
[WhiteElo "2103"]
[BlackElo "2276"]
[TimeControl "180+1"]
[EndTime "14:09:23 PDT"]
[Termination "tonyq11 won by checkmate"]

1. e4 {[%clk 0:03:00.9]} 1... c5 {[%clk 0:02:59.8]} 2. Nc3 {[%clk 0:03:00.6]}
2... Nc6 {[%clk 0:02:59.5]} 3. Bb5 {[%clk 0:03:00.1]} 3... Nd4 {[%clk
0:02:58.2]} 4. Bc4 {[%clk 0:02:59.8]} 4... e6 {[%clk 0:02:58]} 5. Nf3 {[%clk
0:02:59.4]} 5... a6 {[%clk 0:02:54.8]} 6. a4 {[%clk 0:02:57.4]} 6... b6 {[%clk
0:02:43.2]} 7. Nxd4 {[%clk 0:02:51.7]} 7... cxd4 {[%clk 0:02:44.1]} 8. Ne2
{[%clk 0:02:51.3]} 8... Qg5 {[%clk 0:02:09.8]} 9. O-O {[%clk 0:02:48.2]} 9...
Bc5 {[%clk 0:01:59]} 10. d3 {[%clk 0:02:47.7]} 10... Qh4 {[%clk 0:01:53]} 11. c3
{[%clk 0:02:32.2]} 11... dxc3 {[%clk 0:01:51.3]} 12. bxc3 {[%clk 0:02:31.6]}
12... Bb7 {[%clk 0:01:46.2]} 13. d4 {[%clk 0:02:15.2]} 13... Bd6 {[%clk
0:01:39]} 14. Ng3 {[%clk 0:02:03.8]} 14... Nh6 {[%clk 0:01:22.8]} 15. e5 {[%clk
0:01:58.5]} 15... Be7 {[%clk 0:01:11.9]} 16. f3 {[%clk 0:01:40.4]} 16... Rc8
{[%clk 0:00:57.4]} 17. Qe2 {[%clk 0:01:36.1]} 17... O-O {[%clk 0:00:44]} 18. Bd2
{[%clk 0:01:32.8]} 18... d6 {[%clk 0:00:35.6]} 19. Be1 {[%clk 0:01:21.5]} 19...
dxe5 {[%clk 0:00:32.3]} 20. Nf5 {[%clk 0:01:08.8]} 20... Qf6 {[%clk 0:00:26.9]}
21. Nxe7+ {[%clk 0:01:05.4]} 21... Qxe7 {[%clk 0:00:27.3]} 22. dxe5 {[%clk
0:01:05.8]} 22... Qc5+ {[%clk 0:00:25.7]} 23. Rf2 {[%clk 0:01:06.2]} 23... Qxc4
{[%clk 0:00:25.7]} 24. Qb2 {[%clk 0:00:57.3]} 24... b5 {[%clk 0:00:22.6]} 25.
axb5 {[%clk 0:00:56.4]} 25... axb5 {[%clk 0:00:23.3]} 26. Ra7 {[%clk 0:00:55.3]}
26... Bd5 {[%clk 0:00:21.9]} 27. h3 {[%clk 0:00:50.8]} 27... Nf5 {[%clk
0:00:21.8]} 28. g4 {[%clk 0:00:44.6]} 28... Ne3 {[%clk 0:00:17.9]} 29. Qc1
{[%clk 0:00:40.8]} 29... Qc5 {[%clk 0:00:17.9]} 30. Ra1 {[%clk 0:00:31.9]} 30...
Nc4 {[%clk 0:00:17.8]} 31. Kg2 {[%clk 0:00:30.6]} 31... Ra8 {[%clk 0:00:13.8]}
32. Rfa2 {[%clk 0:00:29.8]} 32... Rxa2+ {[%clk 0:00:13.5]} 33. Rxa2 {[%clk
0:00:30.7]} 33... Rc8 {[%clk 0:00:13.3]} 34. Bf2 {[%clk 0:00:31.1]} 34... Qc6
{[%clk 0:00:13.1]} 35. Bd4 {[%clk 0:00:30.7]} 35... Bxf3+ {[%clk 0:00:13.1]} 36.
Kg3 {[%clk 0:00:29.8]} 36... Bd5 {[%clk 0:00:12.1]} 37. Qf4 {[%clk 0:00:29.7]}
37... Ra8 {[%clk 0:00:07]} 38. Rf2 {[%clk 0:00:29.4]} 38... Qd7 {[%clk
0:00:05.4]} 39. g5 {[%clk 0:00:28.9]} 39... g6 {[%clk 0:00:05.4]} 40. h4 {[%clk
0:00:28.8]} 40... Bc6 {[%clk 0:00:05.2]} 41. h5 {[%clk 0:00:27.1]} 41... gxh5
{[%clk 0:00:03.8]} 42. Kh4 {[%clk 0:00:25.2]} 42... Qd5 {[%clk 0:00:04.1]} 43.
Rh2 {[%clk 0:00:23.1]} 43... Qe4 {[%clk 0:00:04.4]} 44. Qxe4 {[%clk 0:00:21.9]}
44... Bxe4 {[%clk 0:00:05.3]} 45. Kxh5 {[%clk 0:00:22.1]} 45... Bg6+ {[%clk
0:00:05.7]} 46. Kh6 {[%clk 0:00:21.7]} 46... Rb8 {[%clk 0:00:03.1]} 47. Bc5
{[%clk 0:00:20.8]} 47... Nb6 {[%clk 0:00:03.1]} 48. Bd6 {[%clk 0:00:20.3]} 48...
Rc8 {[%clk 0:00:03.3]} 49. Ra2 {[%clk 0:00:20.2]} 49... Nd7 {[%clk 0:00:03.4]}
50. Bb4 {[%clk 0:00:18.4]} 50... Bd3 {[%clk 0:00:03.5]} 51. Ra7 {[%clk
0:00:17.5]} 51... Nxe5 {[%clk 0:00:03.9]} 52. g6 {[%clk 0:00:16.5]} 52... hxg6
{[%clk 0:00:03.9]} 53. Kg5 {[%clk 0:00:16.6]} 53... Nf3+ {[%clk 0:00:04.1]} 54.
Kf6 {[%clk 0:00:16.8]} 54... g5 {[%clk 0:00:02.3]} 55. Rxf7 {[%clk 0:00:15.8]}
55... g4 {[%clk 0:00:02.7]} 56. Rg7+ {[%clk 0:00:15.7]} 56... Kh8 {[%clk
0:00:03.3]} 57. Bd6 {[%clk 0:00:14.6]} 57... e5 {[%clk 0:00:02.3]} 58. Re7
{[%clk 0:00:13.6]} 58... Rf8+ {[%clk 0:00:02.3]} 59. Ke6 {[%clk 0:00:13.7]}
59... Kg8 {[%clk 0:00:02.8]} 60. Bxe5 {[%clk 0:00:13.1]} 60... Bf5+ {[%clk
0:00:03.1]} 61. Kd5 {[%clk 0:00:12.6]} 61... Rd8+ {[%clk 0:00:03.4]} 62. Kc6
{[%clk 0:00:12.1]} 62... Nxe5+ {[%clk 0:00:02.9]} 63. Rxe5 {[%clk 0:00:12.2]}
63... Bd3 {[%clk 0:00:03.3]} 64. Rg5+ {[%clk 0:00:12.1]} 64... Kf7 {[%clk
0:00:03.7]} 65. Rxg4 {[%clk 0:00:12.5]} 65... Bc4 {[%clk 0:00:03.4]} 66. Kc5
{[%clk 0:00:11.5]} 66... Rd3 {[%clk 0:00:03.4]} 67. Kb4 {[%clk 0:00:10.4]} 67...
Ke6 {[%clk 0:00:03.4]} 68. Rd4 {[%clk 0:00:09.9]} 68... Rxd4 {[%clk 0:00:02.7]}
69. cxd4 {[%clk 0:00:10.2]} 69... Kd5 {[%clk 0:00:03.2]} 70. Kc3 {[%clk
0:00:08.2]} 70... Bf1 {[%clk 0:00:03.6]} 71. Kb4 {[%clk 0:00:08.1]} 71... Kxd4
{[%clk 0:00:04.5]} 72. Kb3 {[%clk 0:00:08.3]} 72... Bc4+ {[%clk 0:00:05.1]} 73.
Kc2 {[%clk 0:00:08.5]} 73... Kc5 {[%clk 0:00:06]} 74. Kb2 {[%clk 0:00:08.9]}
74... b4 {[%clk 0:00:06.9]} 75. Kc2 {[%clk 0:00:09.2]} 75... Ba6 {[%clk
0:00:07.8]} 76. Kb2 {[%clk 0:00:09.6]} 76... Bc8 {[%clk 0:00:08.6]} 77. Kb3
{[%clk 0:00:09.9]} 77... Kb5 {[%clk 0:00:09]} 78. Kb2 {[%clk 0:00:10.3]} 78...
Kc4 {[%clk 0:00:09.6]} 79. Kc2 {[%clk 0:00:10.5]} 79... b3+ {[%clk 0:00:10.2]}
80. Kb2 {[%clk 0:00:11]} 80... Kb4 {[%clk 0:00:10.8]} 81. Kb1 {[%clk 0:00:10.6]}
81... Kc3 {[%clk 0:00:11.3]} 82. Kc1 {[%clk 0:00:10.9]} 82... b2+ {[%clk
0:00:11.8]} 83. Kb1 {[%clk 0:00:11.2]} 83... Bf5+ {[%clk 0:00:12.5]} 84. Ka2
{[%clk 0:00:10.3]} 84... b1=Q+ {[%clk 0:00:13.4]} 85. Ka3 {[%clk 0:00:10.6]}
85... Qb3# {[%clk 0:00:14.2]} 0-1

[Event "*** Titled Tuesday Blitz"]
[Site "Chess.com"]
[Date "2020.04.07"]
[Round "6"]
[White "Chigorinetz"]
[Black "DrVelja"]
[Result "0-1"]
[WhiteElo "2506"]
[BlackElo "2637"]
[TimeControl "180+1"]
[EndTime "14:09:26 PDT"]
[Termination "DrVelja won on time"]

1. e4 {[%clk 0:03:00.9]} 1... c5 {[%clk 0:02:59.5]} 2. Nc3 {[%clk 0:03:00.5]}
2... Nc6 {[%clk 0:02:59.8]} 3. Nge2 {[%clk 0:03:00.2]} 3... g6 {[%clk
0:02:57.9]} 4. d4 {[%clk 0:03:00]} 4... cxd4 {[%clk 0:02:58.8]} 5. Nxd4 {[%clk
0:03:00.8]} 5... Bg7 {[%clk 0:02:59.7]} 6. Nb3 {[%clk 0:03:01.1]} 6... Nf6
{[%clk 0:02:59.1]} 7. Be2 {[%clk 0:03:00.9]} 7... d6 {[%clk 0:02:59.5]} 8. O-O
{[%clk 0:03:00.6]} 8... O-O {[%clk 0:02:59.7]} 9. Re1 {[%clk 0:03:00.5]} 9...
Be6 {[%clk 0:03:00]} 10. Bf1 {[%clk 0:02:59.8]} 10... Rc8 {[%clk 0:02:55.9]} 11.
Nd5 {[%clk 0:02:59.3]} 11... Nd7 {[%clk 0:02:49.5]} 12. c3 {[%clk 0:02:58.1]}
12... a6 {[%clk 0:02:49]} 13. Bg5 {[%clk 0:02:57]} 13... h6 {[%clk 0:02:48]} 14.
Bh4 {[%clk 0:02:54.9]} 14... b5 {[%clk 0:02:38.5]} 15. a4 {[%clk 0:02:50.2]}
15... g5 {[%clk 0:02:25.4]} 16. axb5 {[%clk 0:02:40.5]} 16... axb5 {[%clk
0:02:24.6]} 17. Bg3 {[%clk 0:02:40.1]} 17... Rb8 {[%clk 0:02:24.5]} 18. h4
{[%clk 0:02:36]} 18... b4 {[%clk 0:02:22.1]} 19. hxg5 {[%clk 0:02:34.2]} 19...
hxg5 {[%clk 0:02:23]} 20. Nd4 {[%clk 0:02:25.8]} 20... Nxd4 {[%clk 0:02:20.5]}
21. cxd4 {[%clk 0:02:25.1]} 21... Nb6 {[%clk 0:02:10.3]} 22. Ne3 {[%clk
0:02:16.1]} 22... Rc8 {[%clk 0:02:10.5]} 23. Ra7 {[%clk 0:01:56.2]} 23... Ra8
{[%clk 0:02:02.7]} 24. Rxa8 {[%clk 0:01:50]} 24... Qxa8 {[%clk 0:02:03.6]} 25.
d5 {[%clk 0:01:42.1]} 25... Bd7 {[%clk 0:02:02.9]} 26. Qh5 {[%clk 0:01:42.4]}
26... f6 {[%clk 0:01:55]} 27. Bd3 {[%clk 0:01:26.2]} 27... Rc8 {[%clk
0:01:46.4]} 28. e5 {[%clk 0:01:23.9]} 28... dxe5 {[%clk 0:01:46.2]} 29. Qh7+
{[%clk 0:01:21.9]} 29... Kf8 {[%clk 0:01:46.3]} 30. d6 {[%clk 0:01:19.9]} 30...
exd6 {[%clk 0:01:32.9]} 31. Rd1 {[%clk 0:01:19.5]} 31... d5 {[%clk 0:01:07]} 32.
Bf5 {[%clk 0:01:07.3]} 32... Qb7 {[%clk 0:00:58.7]} 33. Ng4 {[%clk 0:00:37.2]}
33... Bxf5 {[%clk 0:00:54.2]} 34. Qxf5 {[%clk 0:00:38.1]} 34... Qd7 {[%clk
0:00:53.9]} 35. Qxd7 {[%clk 0:00:35.8]} 35... Nxd7 {[%clk 0:00:53.8]} 36. Rxd5
{[%clk 0:00:36.7]} 36... Ke7 {[%clk 0:00:50.9]} 37. Ne3 {[%clk 0:00:35.9]} 37...
Ke6 {[%clk 0:00:47.4]} 38. Ra5 {[%clk 0:00:36]} 38... Rc6 {[%clk 0:00:39.5]} 39.
f3 {[%clk 0:00:33]} 39... f5 {[%clk 0:00:38.6]} 40. Be1 {[%clk 0:00:32.6]} 40...
Bf8 {[%clk 0:00:36.9]} 41. Kf1 {[%clk 0:00:29.5]} 41... Bc5 {[%clk 0:00:33.4]}
42. Nc4 {[%clk 0:00:26.7]} 42... Bd4 {[%clk 0:00:28.2]} 43. b3 {[%clk
0:00:21.3]} 43... Nc5 {[%clk 0:00:28.5]} 44. Bxb4 {[%clk 0:00:18.5]} 44... Nxb3
{[%clk 0:00:28.3]} 45. Ra3 {[%clk 0:00:16.8]} 45... Rxc4 {[%clk 0:00:23]} 46.
Rxb3 {[%clk 0:00:16.5]} 46... e4 {[%clk 0:00:15.4]} 47. fxe4 {[%clk 0:00:15]}
47... fxe4 {[%clk 0:00:16.3]} 48. Bd2 {[%clk 0:00:14.7]} 48... g4 {[%clk
0:00:13.8]} 49. Bf4 {[%clk 0:00:09.5]} 49... Rc2 {[%clk 0:00:12]} 50. g3 {[%clk
0:00:08.9]} 50... Kd5 {[%clk 0:00:08]} 51. Rb8 {[%clk 0:00:08.1]} 51... Kc4
{[%clk 0:00:06.7]} 52. Rd8 {[%clk 0:00:07.9]} 52... e3 {[%clk 0:00:04.9]} 53.
Ke1 {[%clk 0:00:05.3]} 53... Bc3+ {[%clk 0:00:03.2]} 54. Kd1 {[%clk 0:00:03.3]}
54... e2+ {[%clk 0:00:03]} 55. Kxc2 {[%clk 0:00:02.5]} 55... e1=Q {[%clk
0:00:03.9]} 56. Rc8+ {[%clk 0:00:02.6]} 56... Kd4 {[%clk 0:00:03.6]} 57. Rd8+
{[%clk 0:00:01.8]} 57... Kc4 {[%clk 0:00:02.7]} 58. Rc8+ {[%clk 0:00:01.3]}
58... Kb4 {[%clk 0:00:01]} 0-1